bitfinex-derivatives/quotes_SOLF0:USTF0_20250130
["timestamp","ask_amount","ask_price","bid_price","bid_amount"]
[1738280764035,7.19281923,239.74,239.64,7.19281923]
[1738280764336,7.19281923,239.74,239.71,4.1714]
[1738280765234,11.36381923,239.74,239.7,0.02986643]
[1738280765435,7.19281923,239.72,239.7,0.02986643]
[1738280766534,11.36421923,239.72,239.7,0.02986643]
[1738280767533,7.19281923,239.72,239.7,4.20126643]
[1738280767738,7.19281923,239.72,239.7,0.02986643]
[1738280768133,4.1714,239.71,239.7,0.02986643]
[1738280769037,7.19281923,239.72,239.7,0.02986643]
[1738280769639,11.36411923,239.72,239.7,0.02986643]
[1738280770040,7.19281923,239.72,239.7,0.02986643]
[1738280770341,4.1714,239.71,239.7,0.02986643]
[1738280771041,7.19281923,239.72,239.7,0.02986643]
[1738280772041,4.1714,239.71,239.7,0.02986643]
[1738280782950,7.19281923,239.72,239.7,0.02986643]
[1738280785150,11.36421923,239.72,239.7,0.02986643]
[1738280785542,7.19281923,239.72,239.7,0.02986643]
[1738280786452,4.1714,239.71,239.7,0.02986643]
[1738280789357,7.19281923,239.72,239.7,0.02986643]
[1738280791961,4.1714,239.71,239.7,0.02986643]
[1738280795262,4.1726,239.65,239.59,2.8079]
[1738280795561,7.19281923,239.64,239.59,2.8079]
[1738280796054,4.1726,239.65,239.59,2.8079]
[1738280796461,0.03057519,239.64,239.6,0.03060164]
[1738280797462,0.03057519,239.64,239.63,4.1728]
[1738280799162,11.36491923,239.68,239.64,4.1726]
[1738280799756,4.1715,239.71,239.67,4.172]
[1738280800153,4.1715,239.71,239.64,1.3534]
[1738280800357,4.19965762,239.71,239.67,0.02888105]
[1738280800563,4.1717,239.7,239.67,0.02888105]
[1738280801459,4.1719,239.69,239.67,0.02888105]
[1738280803164,7.19281923,239.7,239.67,0.02888105]
[1738280803465,4.1719,239.68,239.67,0.02888105]
[1738280805867,4.1718,239.69,239.67,0.02888105]
[1738280813475,7.19281923,239.7,239.67,4.20098105]
[1738280816874,7.19281923,239.68,239.67,0.02888105]
[1738280817570,7.19281923,239.68,239.6,59.71905614]
[1738280817775,7.19281923,239.63,239.6,59.71905614]
[1738280820076,7.19281923,239.63,239.6,63.89235614]
[1738280821579,4.20370957,239.64,239.6,63.89235614]
[1738280823784,0.03100957,239.64,239.6,59.71905614]
[1738280823982,4.1731,239.62,239.59,1.38594054]
[1738280824285,7.19281923,239.63,239.59,1.38594054]
[1738280824686,11.36611923,239.61,239.59,0.02884054]
[1738280825085,7.19281923,239.61,239.59,0.02884054]
[1738280825586,4.1733,239.6,239.59,0.02884054]
[1738280839791,11.36601923,239.61,239.59,0.02884054]
[1738280841099,4.1733,239.6,239.59,0.02884054]
[1738280847001,7.19281923,239.61,239.59,0.02884054]
[1738280847202,7.19281923,239.63,239.59,0.02884054]
[1738280848403,7.19281923,239.63,239.6,4.1733]
[1738280848698,7.19281923,239.63,239.59,0.02884054]
[1738280849800,7.19281923,239.61,239.59,0.02884054]
[1738280850399,11.36601923,239.61,239.59,0.02884054]
[1738280850794,4.1733,239.6,239.59,0.02884054]
[1738280852613,11.36601923,239.61,239.59,0.02884054]
[1738280855215,7.19281923,239.61,239.59,0.02884054]
[1738280862023,0.03100957,239.64,239.59,0.02884054]
[1738280862722,0.03100957,239.64,239.61,4.173]
[1738280864722,0.03100957,239.64,239.59,0.02884054]
[1738280865023,0.03100957,239.64,239.63,4.1728]
[1738280866120,0.03100957,239.64,239.59,7.22165977]
[1738280866326,0.03100957,239.64,239.61,4.1731]
[1738280869528,0.03100957,239.64,239.62,4.173]
[1738280871932,4.20370957,239.64,239.59,7.22165977]
[1738280872128,4.20370957,239.64,239.61,4.1732]
[1738280872732,0.03100957,239.64,239.62,4.173]
[1738280878332,0.03100957,239.64,239.63,4.1728]
[1738280878533,7.19281923,239.68,239.61,7.19281923]
[1738280878734,7.19281923,239.7,239.61,7.19281923]
[1738280879733,0.03120566,239.68,239.63,0.02900567]
[1738280881235,7.22402489,239.68,239.63,0.02900567]
[1738280881731,4.1723,239.66,239.63,4.20170567]
[1738280881934,4.1723,239.66,239.63,0.02900567]
[1738280883133,4.1723,239.66,239.64,4.1726]
[1738280883737,7.22402489,239.68,239.63,0.02900567]
[1738280883938,0.03120566,239.68,239.63,0.02900567]
[1738280884540,4.20320566,239.68,239.65,4.1723]
[1738280884736,0.03120566,239.68,239.63,7.2218249]
[1738280885139,0.03120566,239.68,239.67,4.1721]
[1738280889247,0.03120566,239.68,239.63,0.02900567]
[1738280889446,7.22402489,239.68,239.63,0.02900567]
[1738280890746,4.1721,239.67,239.64,4.1725]
[1738280891852,4.1726,239.65,239.63,0.02900567]
[1738280896854,4.1726,239.65,239.63,4.20180567]
[1738280898960,4.1726,239.64,239.63,0.02900567]
[1738280900055,4.1725,239.65,239.63,0.02900567]
[1738280900252,7.19281923,239.64,239.63,0.02900567]
[1738280900860,11.36541923,239.64,239.63,0.02900567]
[1738280902664,13.96541923,239.64,239.63,0.02900567]
[1738280905954,13.96541923,239.64,239.63,5.67e-06]
[1738280906155,4.1744,239.54,239.51,2.7566]
[1738280906357,7.19281923,239.56,239.51,2.7566]
[1738280906853,7.19281923,239.56,239.51,1.41]
[1738280907058,7.19281923,239.54,239.5,1.4546]
[1738280907255,7.19281923,239.52,239.51,0.03031896]
[1738280908057,11.36751923,239.52,239.51,0.03031896]
[1738280916961,7.19281923,239.52,239.43,1.3685]
[1738280917162,7.19281923,239.46,239.43,1.3685]
[1738280917663,7.19281923,239.48,239.43,1.3685]
[1738280917855,7.19281923,239.48,239.42,1.3434]
[1738280918056,4.1756,239.47,239.42,5.5197]
[1738280918257,7.19281923,239.46,239.43,0.03027691]
[1738280918457,11.36891923,239.44,239.43,0.03027691]
[1738280921168,7.19281923,239.44,239.43,0.03027691]
[1738280925265,11.36891923,239.44,239.43,0.03027691]
[1738280926768,7.19281923,239.46,239.43,0.03027691]
[1738280927164,7.19281923,239.46,239.43,4.20657691]
[1738280927369,0.03054746,239.47,239.43,4.20657691]
[1738280927868,4.20614746,239.47,239.43,4.20657691]
[1738280928068,7.19281923,239.46,239.43,0.03027691]
[1738280928274,7.19281923,239.44,239.43,0.03027691]
[1738280928673,11.36891923,239.44,239.43,0.03027691]
[1738280932673,7.19281923,239.44,239.43,0.03027691]
[1738280932875,7.19281923,239.46,239.43,0.03027691]
[1738280933066,0.03054746,239.47,239.43,0.03027691]
[1738280933269,7.19281923,239.46,239.43,0.03027691]
[1738280933466,7.19281923,239.46,239.43,4.20657691]
[1738280939974,0.03054746,239.47,239.43,0.03027691]
[1738280940179,0.03054746,239.47,239.43,4.20647691]
[1738280940575,0.03054746,239.47,239.44,4.1761]
[1738280941682,4.20614746,239.47,239.44,4.1761]
[1738280944479,4.20614746,239.47,239.43,0.03027691]
[1738280944480,0.03054746,239.47,239.46,4.1758]
[1738280944677,7.19281923,239.56,239.45,7.19281923]
[1738280944879,7.19281923,239.56,239.47,7.19281923]
[1738280945080,11.36681923,239.56,239.51,4.1748]
[1738280945784,11.39574047,239.56,239.51,4.20253808]
[1738280947078,7.22174047,239.56,239.52,4.1747]
[1738280947279,7.19281923,239.6,239.51,7.22055731]
[1738280947482,7.19281923,239.6,239.53,7.19281923]
[1738280947683,7.19281923,239.6,239.54,1.379]
[1738280948084,7.19281923,239.6,239.56,4.1739]
[1738280948287,11.36591923,239.62,239.56,4.1739]
[1738280948491,0.03117104,239.6,239.56,4.20580052]
[1738280948785,0.03117104,239.6,239.56,0.03190052]
[1738280948985,0.03117104,239.6,239.57,4.1737]
[1738280953297,4.20457104,239.6,239.57,4.1737]
[1738280953498,0.03117104,239.6,239.57,4.1737]
[1738280954998,7.22399027,239.6,239.56,0.03190052]
[1738280955297,4.1736,239.59,239.56,0.03190052]
[1738280956199,4.1736,239.59,239.56,4.20590052]
[1738280956499,7.22399027,239.6,239.56,0.03190052]
[1738280956699,11.36651923,239.58,239.56,0.03190052]
[1738280958903,4.1739,239.57,239.56,0.03190052]
[1738280960299,7.19281923,239.58,239.56,0.03190052]
[1738280960498,7.22399027,239.6,239.56,0.03190052]
[1738280962097,11.39749027,239.6,239.57,4.1739]
[1738280965101,7.22399027,239.6,239.57,4.1739]
[1738280966104,0.03117104,239.6,239.59,11.36631923]
[1738280966303,11.36481923,239.68,239.59,7.19281923]
[1738280967305,11.36481923,239.68,239.64,4.1726]
[1738280967506,0.02852986,239.66,239.64,4.1726]
[1738280968209,0.02852986,239.66,239.61,0.03119566]
[1738280968403,0.02852986,239.66,239.62,4.1728]
[1738280975711,4.20082986,239.66,239.62,4.1728]
[1738280978107,0.02852986,239.66,239.61,0.03119566]
[1738280978313,7.19281923,239.62,239.61,0.03119566]
[1738280978714,11.36581923,239.62,239.61,0.03119566]
[1738280979511,7.19281923,239.62,239.52,201.36218131]
[1738280979712,7.19281923,239.58,239.52,201.36218131]
[1738280980018,7.19281923,239.58,239.52,6.36218131]
[1738280980618,0.03023377,239.57,239.53,0.02725804]
[1738280981317,0.03023377,239.57,239.54,4.1744]
[1738280981910,0.03023377,239.57,239.53,0.02725804]
[1738280982920,4.20423377,239.57,239.53,0.02725804]
[1738280983320,7.19281923,239.56,239.53,0.02725804]
[1738280984021,11.36701923,239.56,239.53,0.02725804]
[1738280984420,7.19281923,239.56,239.53,0.02725804]
[1738280985322,0.03023377,239.57,239.53,0.02725804]
[1738280987315,0.03023377,239.57,239.54,4.1743]
[1738280988529,0.03023377,239.57,239.53,0.02725804]
[1738280988821,7.19281923,239.56,239.53,0.02725804]
[1738280989730,11.36691923,239.56,239.53,0.02725804]
[1738280992529,0.03023377,239.57,239.53,0.02725804]
[1738280992828,4.20413377,239.57,239.53,0.02725804]
[1738280993228,0.03023377,239.57,239.53,0.02725804]
[1738280993431,4.1741,239.56,239.53,0.02725804]
[1738280995532,0.03023377,239.57,239.53,0.02725804]
[1738280997533,4.20413377,239.57,239.53,4.20185804]
[1738280998033,7.19281923,239.56,239.53,0.02725804]
[1738280998532,11.36681923,239.56,239.53,0.02725804]
[1738280998729,7.19281923,239.56,239.53,0.02725804]
[1738280999130,4.20413377,239.57,239.53,4.20175804]
[1738280999932,0.03023377,239.57,239.55,4.1742]
[1738281000334,0.03023377,239.57,239.53,0.02725804]
[1738281000530,0.03023377,239.57,239.53,7.22007727]
[1738281000937,0.03023377,239.57,239.56,4.174]
[1738281001430,0.03023377,239.57,239.54,4.1743]
[1738281001737,0.03023377,239.57,239.53,0.02725804]
[1738281003131,0.03023377,239.57,239.53,4.20175804]
[1738281004537,0.03023377,239.57,239.53,0.02725804]
[1738281004938,0.03023377,239.57,239.53,7.22007727]
[1738281005237,0.03023377,239.57,239.55,4.1742]
[1738281010844,0.03023377,239.57,239.56,4.174]
[1738281016850,7.19281923,239.65,239.61,4.1731]
[1738281017251,11.36511923,239.67,239.62,4.173]
[1738281017443,11.36511923,239.67,239.6,7.19281923]
[1738281017647,7.19281923,239.67,239.6,7.19281923]
[1738281017845,0.02890506,239.66,239.61,0.03100314]
[1738281018343,0.02890506,239.66,239.62,7.19281923]
[1738281019255,0.02890506,239.66,239.64,4.1726]
[1738281020554,0.02890506,239.66,239.65,4.1725]
[1738281023556,0.02890506,239.66,239.62,7.19281923]
[1738281023755,0.02890506,239.66,239.61,0.03100314]
[1738281024555,0.02890506,239.66,239.61,4.20410314]
[1738281025551,4.173,239.62,239.61,0.03100314]
[1738281030366,9.79281923,239.63,239.47,7.19281923]
[1738281030560,7.19281923,239.55,239.45,12.69981923]
[1738281031156,7.19281923,239.55,239.45,8.52401923]
[1738281031363,7.19281923,239.53,239.49,0.03041128]
[1738281032065,4.175,239.51,239.49,0.03041128]
[1738281033265,11.36781923,239.51,239.49,0.03041128]
[1738281033965,4.175,239.51,239.49,0.03041128]
[1738281035864,7.19281923,239.53,239.49,0.03041128]
[1738281036066,0.03195528,239.54,239.49,0.03041128]
[1738281036262,0.03195528,239.54,239.49,7.22323051]
[1738281038070,0.03195528,239.54,239.5,4.1751]
[1738281038668,0.03195528,239.54,239.49,7.22323051]
[1738281038669,0.03195528,239.54,239.49,11.39853051]
[1738281039670,0.03195528,239.54,239.49,4.20571128]
[1738281040668,4.20635528,239.54,239.49,4.20571128]
[1738281041371,4.20635528,239.54,239.49,11.39853051]
[1738281043777,0.03195528,239.54,239.53,4.1746]
[1738281043976,53.59275632,239.73,239.53,7.19281923]
[1738281043977,7.19281923,239.63,239.53,7.19281923]
[1738281044169,7.19281923,239.63,239.55,7.19281923]
[1738281045079,0.03004527,239.61,239.57,4.20517646]
[1738281045574,0.03004527,239.61,239.57,0.03137646]
[1738281045776,4.20324527,239.61,239.57,0.03137646]
[1738281045977,0.03004527,239.61,239.57,0.03137646]
[1738281047180,4.1734,239.6,239.57,0.03137646]
[1738281048280,4.1737,239.58,239.57,0.03137646]
[1738281051280,7.19281923,239.59,239.57,0.03137646]
[1738281051480,11.36631923,239.59,239.57,0.03137646]
[1738281054384,11.3961645,239.61,239.57,0.03137646]
[1738281056486,4.1733,239.6,239.57,0.03137646]
[1738281058289,7.2228645,239.61,239.57,0.03137646]
[1738281058488,4.1737,239.58,239.57,0.03137646]
[1738281059684,4.1737,239.58,239.57,7.646e-05]
[1738281059889,4.1746,239.53,239.47,7.19281923]
[1738281060291,7.19281923,239.52,239.45,7.19281923]
[1738281060487,7.19281923,239.52,239.43,7.19281923]
[1738281060688,7.19281923,239.5,239.43,7.19281923]
[1738281060992,0.02846716,239.49,239.44,0.02737546]
[1738281061387,0.02846716,239.49,239.44,4.20347546]
[1738281062387,4.20376716,239.49,239.44,0.02737546]
[1738281062593,0.02846716,239.49,239.44,0.02737546]
[1738281064091,4.1754,239.48,239.44,0.02737546]
[1738281064592,11.36821923,239.48,239.44,0.02737546]
[1738281064786,4.1756,239.47,239.44,0.02737546]
[1738281067297,7.19281923,239.48,239.44,0.02737546]
[1738281067693,4.176,239.45,239.44,0.02737546]
[1738281071399,4.176,239.45,239.44,7.546e-05]
[1738281072103,4.1775,239.37,239.31,7.19281923]
[1738281073003,4.1775,239.37,239.29,7.19281923]
[1738281073196,4.20787792,239.36,239.32,0.02777958]
[1738281073602,7.22319715,239.36,239.32,0.02777958]
[1738281073803,11.37071923,239.34,239.32,0.02777958]
[1738281074403,0.03037792,239.36,239.32,0.02777958]
[1738281075306,0.03037792,239.36,239.32,4.20597958]
[1738281076102,0.03037792,239.36,239.33,4.178]
[1738281076304,0.03037792,239.36,239.32,0.02777958]
[1738281076708,0.03037792,239.36,239.34,7.19281923]
[1738281077205,2.6,239.42,239.34,7.19281923]
[1738281077504,2.6,239.42,239.37,4.1772]
[1738281077905,2.6,239.42,239.34,7.19281923]
[1738281078406,0.03175227,239.4,239.36,0.02960997]
[1738281079003,7.2245715,239.4,239.36,0.02960997]
[1738281080702,7.19281923,239.38,239.36,0.02960997]
[1738281083811,11.37001923,239.38,239.36,0.02960997]
[1738281084009,7.19281923,239.38,239.36,9.97e-06]
[1738281084306,7.19281923,239.38,239.2,7.19281923]
[1738281084611,7.19281923,239.28,239.2,7.19281923]
[1738281085307,0.02961298,239.27,239.22,0.02975696]
[1738281086108,0.02961298,239.27,239.22,7.22257619]
[1738281086307,7.19281923,239.26,239.22,0.02975696]
[1738281086614,7.19281923,239.24,239.22,0.02975696]
[1738281088212,11.37251923,239.24,239.22,0.02975696]
[1738281092622,7.19281923,239.24,239.22,0.02975696]
[1738281092914,7.19281923,239.26,239.22,0.02975696]
[1738281093115,7.19281923,239.24,239.22,0.02975696]
[1738281098222,4.1798,239.23,239.22,0.02975696]
[1738281100825,7.19281923,239.24,239.22,0.02975696]
[1738281101924,7.19281923,239.26,239.22,0.02975696]
[1738281102122,0.02961298,239.27,239.25,4.1793]
[1738281102424,0.02961298,239.27,239.23,1.4114]
[1738281102722,0.02961298,239.27,239.25,4.1793]
[1738281104428,0.02961298,239.27,239.26,4.1793]
[1738281104724,11.31516138,239.36,239.23,12.72656138]
[1738281105125,11.31516138,239.36,239.26,4.1791]
[1738281105722,4.1785,239.31,239.29,0.02804019]
[1738281107427,11.34278104,239.33,239.29,0.02804019]
[1738281107628,15.49376138,239.3,239.29,0.02804019]
[1738281112632,4.1786,239.3,239.29,0.02804019]
[1738281112931,4.1784,239.31,239.29,0.02804019]
[1738281113631,0.02761966,239.33,239.29,0.02804019]
[1738281114934,4.20571966,239.33,239.29,0.02804019]
[1738281115134,0.02761966,239.33,239.29,0.02804019]
[1738281115428,11.34278104,239.33,239.29,0.02804019]
[1738281115629,4.1786,239.3,239.29,0.02804019]
[1738281120039,4.1784,239.31,239.29,0.02804019]
[1738281120234,11.34278104,239.33,239.29,0.02804019]
[1738281120635,4.1786,239.3,239.29,0.02804019]
[1738281121440,15.49376138,239.3,239.29,0.02804019]
[1738281125644,4.1797,239.24,239.18,4.1805]
[1738281126237,3.8401,239.39,239.15,1.4597]
[1738281126238,11.31516138,239.29,239.15,1.4597]
[1738281126634,7.24578238,239.26,239.19,7.24578238]
[1738281126937,0.02945418,239.24,239.22,4.1798]
[1738281127134,11.42468238,239.29,239.19,7.24578238]
[1738281127538,7.24578238,239.29,239.19,7.24578238]
[1738281127741,4.1789,239.28,239.22,4.18]
[1738281128036,3.8401,239.39,239.22,4.18]
[1738281128246,7.24578238,239.23,239.15,1.4597]
[1738281128638,0.03103842,239.21,239.17,0.02647031]
[1738281129442,0.03103842,239.21,239.17,4.20727031]
[1738281129649,7.2768208,239.21,239.17,0.02647031]
[1738281130342,4.1803,239.2,239.17,0.02647031]
[1738281130740,7.2768208,239.21,239.17,0.02647031]
[1738281131346,7.24578238,239.19,239.17,0.02647031]
[1738281131746,7.24578238,239.19,239.04,11.42878238]
[1738281131948,7.24578238,239.13,239.04,7.24578238]
[1738281132345,7.24578238,239.13,239.06,4.1827]
[1738281132543,7.24578238,239.11,239.05,1.4346]
[1738281132848,0.03030907,239.1,239.06,0.02727152]
[1738281133145,7.24578238,239.09,239.06,0.02727152]
[1738281133346,4.1825,239.08,239.06,0.02727152]
[1738281133943,7.24578238,239.07,239.06,0.02727152]
[1738281134145,7.24578238,239.07,239.06,7.152e-05]
[1738281134349,4.1825,239.08,239.06,7.152e-05]
[1738281135046,4.21250907,239.1,239.06,7.152e-05]
[1738281135251,0.03030907,239.1,239.06,7.152e-05]
[1738281137048,0.03030907,239.1,239.08,4.1823]
[1738281138555,11.33863994,239.23,239.07,11.33863994]
[1738281139747,2.68,239.24,239.04,1.3536]
[1738281139748,0.03052748,239.17,239.13,0.02638839]
[1738281141051,14.01863994,239.26,239.13,0.02638839]
[1738281141251,4.1799,239.23,239.15,4.1811]
[1738281141449,11.33863994,239.23,239.14,1.4022]
[1738281141656,14.01863994,239.26,239.14,1.4022]
[1738281142051,4.1796,239.24,239.18,4.1806]
[1738281142253,0.03128381,239.22,239.18,0.02912265]
[1738281143955,11.33863994,239.2,239.18,0.02912265]
[1738281145061,15.51913994,239.2,239.18,0.02912265]
[1738281146064,11.33863994,239.2,239.18,0.02912265]
[1738281146455,15.51893994,239.2,239.18,0.02912265]
[1738281147557,11.33863994,239.2,239.18,0.02912265]
[1738281147755,4.1805,239.19,239.18,0.02912265]
[1738281154566,4.1812,239.16,239.09,4.1821]
[1738281154771,7.25281988,239.13,239.09,4.1821]
[1738281155469,7.25281988,239.13,239.1,4.182]
[1738281155670,0.02701553,239.14,239.1,4.182]
[1738281155862,7.25281988,239.15,239.1,4.182]
[1738281156062,0.02930063,239.14,239.1,4.21242751]
[1738281156765,0.02930063,239.14,239.11,4.1819]
[1738281162772,4.1819,239.12,239.1,0.03042751]
[1738281162972,7.25281988,239.11,239.1,0.03042751]
[1738281164073,11.43471988,239.11,239.1,0.03042751]
[1738281164470,0.02930063,239.14,239.1,0.03042751]
[1738281166069,0.02930063,239.14,239.11,4.1818]
[1738281168580,0.02930063,239.14,239.1,0.03042751]
[1738281168874,4.1816,239.13,239.1,0.03042751]
[1738281174077,7.25281988,239.13,239.1,0.03042751]
[1738281176085,4.1817,239.12,239.1,0.03042751]
[1738281177482,7.25281988,239.13,239.1,0.03042751]
[1738281177781,11.43431988,239.13,239.1,0.03042751]
[1738281179480,7.25281988,239.13,239.11,4.1818]
[1738281179689,0.02930063,239.14,239.1,0.03042751]
[1738281180577,0.02930063,239.14,239.13,4.1815]
[1738281183989,4.21070063,239.14,239.1,0.03042751]
[1738281184186,7.25281988,239.13,239.1,0.03042751]
[1738281184590,4.21070063,239.14,239.1,4.21242751]
[1738281185487,4.1817,239.12,239.1,0.03042751]
[1738281185988,7.25281988,239.13,239.1,0.03042751]
[1738281187887,7.25281988,239.13,239.1,4.21242751]
[1738281188088,0.02930063,239.14,239.1,0.03042751]
[1738281189187,0.02930063,239.14,239.11,4.1818]
[1738281191693,0.02930063,239.14,239.1,4.21242751]
[1738281192494,4.21070063,239.14,239.1,4.21242751]
[1738281192696,7.25281988,239.13,239.1,0.03042751]
[1738281194099,4.1817,239.12,239.1,0.03042751]
[1738281196498,7.25281988,239.13,239.1,0.03042751]
[1738281196697,11.43431988,239.13,239.1,0.03042751]
[1738281198901,11.43471988,239.11,239.1,0.03042751]
[1738281199701,4.1819,239.11,239.1,0.03042751]
[1738281202198,11.43471988,239.11,239.1,0.03042751]
[1738281212209,9.85281988,239.11,238.91,31.83954321]
[1738281212409,7.25281988,239.0,238.91,31.83954321]
[1738281212710,11.43661988,239.0,238.95,4.1846]
[1738281212907,7.25281988,239.0,238.93,7.25281988]
[1738281213112,7.25281988,239.02,238.95,7.25281988]
[1738281213305,0.03205576,238.99,238.95,7.25281988]
[1738281214108,0.03205576,238.99,238.97,4.1843]
[1738281214307,7.25281988,239.1,238.97,7.25281988]
[1738281214504,7.25281988,239.1,239.01,7.25281988]
[1738281215212,4.1824,239.09,239.02,4.1834]
[1738281215410,0.02673701,239.08,239.03,0.02939711]
[1738281216405,4.20913701,239.08,239.03,0.02939711]
[1738281216808,11.46195689,239.08,239.03,0.02939711]
[1738281217014,4.1831,239.05,239.03,0.02939711]
[1738281218910,7.25281988,239.06,239.03,0.02939711]
[1738281219107,4.1831,239.04,239.03,0.02939711]
[1738281219412,11.43591988,239.04,239.03,0.02939711]
[1738281222920,11.43591988,239.04,238.91,202.25281988]
[1738281222921,7.25281988,239.04,238.91,202.25281988]
[1738281223213,7.25281988,238.92,238.87,1.4277]
[1738281223416,7.25281988,238.89,238.82,172.60280159]
[1738281223622,7.25281988,238.89,238.83,1.3424]
[1738281224223,0.02914577,238.88,238.84,4.21762699]
[1738281224426,0.02914577,238.88,238.84,0.03122699]
[1738281224617,0.02914577,238.88,238.85,7.25281988]
[1738281225125,0.02914577,238.88,238.87,7.25281988]
[1738281225618,11.43751988,238.95,238.87,7.25281988]
[1738281225817,11.43751988,238.95,238.88,4.1858]
[1738281226013,11.43751988,238.95,238.87,7.25281988]
[1738281226014,2.6,238.98,238.91,7.25281988]
[1738281226723,0.03000723,238.97,238.92,0.02898949]
[1738281227124,0.03000723,238.97,238.92,4.21408949]
[1738281229426,0.03000723,238.97,238.93,4.185]
[1738281230629,0.03000723,238.97,238.95,4.1846]
[1738281231323,7.25281988,239.03,238.95,7.25281988]
[1738281232317,0.03022327,239.01,238.95,7.25281988]
[1738281233123,0.03022327,239.01,238.98,4.1841]
[1738281233928,0.03022327,239.01,238.99,4.184]
[1738281234324,0.03022327,239.01,238.97,7.28492409]
[1738281235025,0.03022327,239.01,239.0,4.1838]
[1738281239434,7.25281988,239.05,239.02,4.1833]
[1738281241239,7.25281988,239.03,238.97,0.03210421]
[1738281241536,7.25281988,239.01,238.97,0.03210421]
[1738281243136,11.43641988,239.01,238.97,4.21640421]
[1738281244627,11.43641988,239.01,238.97,0.03210421]
[1738281245738,11.43641988,239.01,238.97,4.21640421]
[1738281246539,4.1838,239.0,238.97,0.03210421]
[1738281247432,7.280553,239.01,238.97,4.21630421]
[1738281248937,7.280553,239.01,238.98,4.1842]
[1738281254140,7.280553,239.01,238.97,0.03210421]
[1738281254343,7.25281988,238.99,238.97,0.03210421]
[1738281256147,11.43691988,238.99,238.97,0.03210421]
[1738281258050,4.1842,238.98,238.97,0.03210421]
[1738281259146,0.02773312,239.01,238.97,0.03210421]
[1738281259551,0.02773312,239.01,238.99,4.1838]
[1738281261248,0.02773312,239.01,238.97,0.03210421]
[1738281261454,0.02773312,239.01,238.98,4.1841]
[1738281262848,7.280553,239.01,238.97,4.21630421]
[1738281263053,7.280553,239.01,238.97,0.03210421]
[1738281263650,11.464353,239.01,238.97,0.03210421]
[1738281267650,7.280553,239.01,238.99,4.1839]
[1738281267956,0.02773312,239.01,238.99,4.1839]
[1738281269350,7.280553,239.01,238.99,4.1839]
[1738281273450,0.02773312,239.01,238.99,4.1839]
[1738281275756,0.02773312,239.01,238.98,4.1842]
[1738281278751,0.02773312,239.01,238.97,4.21640421]
[1738281280449,0.02773312,239.01,238.99,4.1839]
[1738281280653,0.02773312,239.01,238.97,0.03210421]
[1738281282187,0.02773312,239.01,238.97,4.21630421]
[1738281284464,0.02773312,239.01,239.0,4.1838]
[1738281285462,11.43551988,239.07,239.02,4.1834]
[1738281286462,11.43551988,239.07,239.02,4.2125138]
[1738281287961,11.43551988,239.07,239.03,4.1832]
[1738281288707,7.25281988,239.07,239.02,0.0291138]
[1738281288879,7.25281988,239.07,239.04,4.1831]
[1738281296664,7.25281988,239.07,239.02,0.0291138]
[1738281296965,7.25281988,239.07,239.05,4.1829]
[1738281297864,7.25281988,239.09,239.05,4.1828]
[1738281300167,11.43511988,239.09,239.05,4.1828]
[1738281300368,7.25281988,239.09,239.04,4.1831]
[1738281301164,11.43501988,239.09,239.05,4.1829]
[1738281301464,7.25281988,239.07,239.02,0.0291138]
[1738281302167,11.43541988,239.07,239.03,4.1832]
[1738281302666,11.43541988,239.07,239.02,0.0291138]
[1738281304169,4.1828,239.06,239.02,0.0291138]
[1738281304369,4.1828,239.06,239.02,4.2126138]
[1738281305060,7.25281988,239.07,239.02,0.0291138]
[1738281305264,7.25281988,239.03,239.02,0.0291138]
[1738281305963,11.43611988,239.03,239.02,0.0291138]
[1738281307564,7.25281988,239.03,239.02,0.0291138]
[1738281307769,7.25281988,239.05,239.02,0.0291138]
[1738281309671,7.25281988,239.03,239.02,0.0291138]
[1738281310374,11.43611988,239.03,239.02,0.0291138]
[1738281320683,7.25281988,239.09,239.02,0.0291138]
[1738281321283,7.25281988,239.09,239.05,4.1828]
[1738281321479,7.25281988,239.09,239.02,0.0291138]
[1738281321684,11.43511988,239.09,239.04,4.1831]
[1738281321987,11.43511988,239.09,239.02,0.0291138]
[1738281322186,2.6,239.15,239.02,0.0291138]
[1738281322187,7.25281988,239.07,239.02,0.0291138]
[1738281322785,4.1828,239.06,239.02,0.0291138]
[1738281323886,7.25281988,239.05,239.02,0.0291138]
[1738281324786,4.1833,239.04,239.02,0.0291138]
[1738281325986,11.43571988,239.05,239.02,0.0291138]
[1738281326683,7.25281988,239.05,239.02,0.0291138]
[1738281326879,4.1831,239.04,239.02,0.0291138]
[1738281329989,4.1833,239.03,239.02,0.0291138]
[1738281333189,11.43581988,239.05,239.02,0.0291138]
[1738281333786,7.25281988,239.05,239.03,4.1833]
[1738281334587,7.25281988,239.05,239.02,4.2126138]
[1738281334787,7.25281988,239.05,239.02,0.0291138]
[1738281335793,4.1833,239.03,239.02,0.0291138]
[1738281341594,7.25281988,239.08,239.02,0.0291138]